bitfinex-derivatives/quotes_BTCF0:USTF0_20250922
["timestamp","ask_amount","ask_price","bid_price","bid_amount"]
[1758568063114,0.12761262,112630.0,112620.0,2.256325]
[1758568063420,0.7889199,112630.0,112620.0,1.6616946]
[1758568063718,0.7889199,112630.0,112620.0,0.73827]
[1758568067515,0.7889199,112630.0,112620.0,0.8269996]
[1758568068415,0.7889199,112630.0,112620.0,0.73827]
[1758568072719,1.6048399,112630.0,112620.0,0.8269996]
[1758568073016,1.6048399,112630.0,112620.0,0.73827]
[1758568073219,1.6048399,112630.0,112620.0,0.005]
[1758568073414,2.01808373,112630.0,112620.0,0.005]
[1758568077519,0.81208645,112630.0,112620.0,0.005]
[1758568077828,2.01936373,112630.0,112620.0,0.005]
[1758568078122,2.03531611,112630.0,112620.0,0.005]
[1758568080320,2.03531611,112630.0,112600.0,1.8608]
[1758568080321,0.1018875,112610.0,112600.0,1.8608]
[1758568080525,1.38694466,112610.0,112600.0,0.6808]
[1758568080724,0.56874466,112610.0,112600.0,0.5008]
[1758568081026,1.38718466,112610.0,112600.0,0.52291]
[1758568081225,0.99710738,112610.0,112600.0,0.52291]
[1758568081527,0.99710738,112610.0,112600.0,0.52491]
[1758568081827,0.99710738,112610.0,112600.0,0.17511]
[1758568081828,0.99910738,112610.0,112600.0,0.17511]
[1758568083028,0.18066738,112610.0,112600.0,0.17511]
[1758568083530,0.99874738,112610.0,112600.0,0.17511]
[1758568085335,0.18066738,112610.0,112600.0,0.2638553]
[1758568085637,0.99850738,112610.0,112600.0,0.65393258]
[1758568086522,0.99850738,112610.0,112600.0,0.51393258]
[1758568086732,0.99850738,112610.0,112600.0,0.4338553]
[1758568087529,0.18066738,112610.0,112600.0,0.4338553]
[1758568087730,0.99838738,112610.0,112600.0,0.4338553]
[1758568088026,0.96655842,112610.0,112600.0,0.4338553]
[1758568088824,0.96643842,112610.0,112600.0,0.4338553]
[1758568089024,0.96635842,112610.0,112600.0,0.4338553]
[1758568090036,0.96635842,112610.0,112600.0,0.34511]
[1758568090529,1.3564357,112610.0,112600.0,0.34511]
[1758568095638,0.96635842,112610.0,112600.0,0.34511]
[1758568095934,1.3564357,112610.0,112600.0,0.34511]
[1758568096136,0.5389157,112610.0,112600.0,0.34511]
[1758568096331,1.3558357,112610.0,112600.0,0.34511]
[1758568096530,0.44159265,112610.0,112600.0,0.63786423]
[1758568096731,1.25847265,112610.0,112600.0,0.63786423]
[1758568098528,0.44159265,112610.0,112600.0,0.63786423]
[1758568098934,1.25819265,112610.0,112600.0,0.63786423]
[1758568100535,0.44159265,112610.0,112600.0,0.63786423]
[1758568100740,1.25791265,112610.0,112600.0,0.63786423]
[1758568101040,1.28974161,112610.0,112600.0,0.63786423]
[1758568102036,1.28974161,112610.0,112600.0,0.32786423]
[1758568102238,0.1235611,112580.0,112570.0,0.38064]
[1758568102439,1.25457625,112580.0,112570.0,0.98319423]
[1758568102642,1.54733048,112580.0,112570.0,0.34964]
[1758568102845,1.57916749,112580.0,112570.0,0.35004]
[1758568103238,1.57916749,112580.0,112570.0,0.34964]
[1758568103543,1.58016749,112580.0,112570.0,0.35704]
[1758568103934,1.58016749,112580.0,112570.0,0.445809]
[1758568104235,1.54833048,112580.0,112570.0,0.445809]
[1758568104436,1.55233048,112580.0,112570.0,0.461809]
[1758568104943,1.56143961,112580.0,112570.0,0.461809]
[1758568105639,1.63247884,112580.0,112570.0,0.461809]
[1758568105841,0.81635884,112580.0,112570.0,0.461809]
[1758568106037,1.04737038,112580.0,112570.0,1.00456323]
[1758568106342,1.34012461,112580.0,112570.0,1.36536323]
[1758568106942,1.34012461,112580.0,112570.0,1.072609]
[1758568107143,1.34012461,112580.0,112570.0,1.36536323]
[1758568108542,1.63287884,112580.0,112570.0,0.73384]
[1758568108735,0.52360461,112580.0,112570.0,1.11536323]
[1758568108935,1.33980461,112580.0,112570.0,1.11536323]
[1758568109136,0.52360461,112580.0,112570.0,1.11536323]
[1758568109746,1.34000461,112580.0,112570.0,1.11536323]
[1758568110248,0.52360461,112580.0,112570.0,1.11536323]
[1758568110444,1.04725038,112580.0,112570.0,1.11536323]
[1758568110744,1.34000461,112580.0,112570.0,1.11536323]
[1758568111248,0.52360461,112580.0,112570.0,1.11536323]
[1758568111548,1.34004461,112580.0,112570.0,1.11536323]
[1758568111946,0.10728928,112580.0,112570.0,1.65811746]
[1758568112334,0.10728928,112580.0,112570.0,1.36536323]
[1758568112540,0.10768928,112580.0,112570.0,1.36536323]
[1758568113148,0.09858015,112580.0,112570.0,1.36536323]
[1758568113348,0.1076847,112580.0,112570.0,1.36536323]
[1758568113647,0.2103158,112580.0,112570.0,1.072609]
[1758568113947,0.2103158,112580.0,112570.0,2.18196323]
[1758568114341,0.2103158,112580.0,112570.0,2.17996323]
[1758568114537,0.2103158,112580.0,112570.0,2.17896323]
[1758568115240,0.2103158,112580.0,112570.0,2.17796323]
[1758568115434,0.1215547,112580.0,112570.0,2.17796323]
[1758568115641,0.1066847,112580.0,112570.0,2.46671746]
[1758568116152,0.1062847,112580.0,112570.0,2.46671746]
[1758568116342,0.1066847,112580.0,112570.0,2.46671746]
[1758568117345,0.1066847,112580.0,112570.0,1.35736323]
[1758568117346,0.2093158,112580.0,112570.0,1.35736323]
[1758568117542,0.2093158,112580.0,112570.0,1.10736323]
[1758568117849,0.50207003,112580.0,112570.0,1.92368323]
[1758568118347,0.50207003,112580.0,112570.0,1.10736323]
[1758568119247,0.2093158,112580.0,112570.0,1.10736323]
[1758568119449,0.50207003,112580.0,112570.0,1.10736323]
[1758568119650,0.52525003,112580.0,112570.0,0.814609]
[1758568119851,0.52525003,112580.0,112570.0,1.10736323]
[1758568120151,0.2324958,112580.0,112570.0,1.10736323]
[1758568120451,0.52525003,112580.0,112570.0,1.10736323]
[1758568121153,0.52525003,112580.0,112570.0,1.10696323]
[1758568121351,0.52525003,112580.0,112570.0,1.10736323]
[1758568122355,0.2324958,112580.0,112570.0,1.10736323]
[1758568123156,0.52525003,112580.0,112570.0,1.10736323]
[1758568123954,0.2324958,112580.0,112570.0,1.10736323]
[1758568124260,0.52525003,112580.0,112570.0,1.10736323]
[1758568126555,0.2324958,112580.0,112570.0,1.10736323]
[1758568126855,0.52525003,112580.0,112570.0,1.10736323]
[1758568127658,0.2324958,112580.0,112570.0,1.10736323]
[1758568129847,0.2324958,112580.0,112570.0,0.814609]
[1758568130048,0.52525003,112580.0,112570.0,1.92312323]
[1758568130953,0.2324958,112580.0,112570.0,1.10736323]
[1758568131158,0.2093158,112580.0,112570.0,1.10736323]
[1758568131658,0.2324958,112580.0,112570.0,1.10736323]
[1758568132658,0.52525003,112580.0,112570.0,1.10736323]
[1758568133252,0.2324958,112580.0,112570.0,1.10736323]
[1758568133449,0.52525003,112580.0,112570.0,1.10736323]
[1758568133644,0.52525003,112580.0,112570.0,0.814609]
[1758568133645,0.81800426,112580.0,112570.0,0.814609]
[1758568134153,0.81800426,112580.0,112570.0,0.814209]
[1758568134154,0.52525003,112580.0,112570.0,0.814209]
[1758568134458,0.52525003,112580.0,112570.0,1.10736323]
[1758568135555,0.81800426,112580.0,112570.0,1.10736323]
[1758568135858,0.81800426,112580.0,112570.0,0.453809]
[1758568136361,1.42880426,112580.0,112570.0,0.0154]
[1758568136564,1.46064127,112580.0,112570.0,0.03504]
[1758568136864,2.27664127,112580.0,112570.0,0.03504]
[1758568137059,1.46064127,112580.0,112570.0,0.0154]
[1758568137260,2.27660127,112580.0,112570.0,0.0154]
[1758568137661,2.27460127,112580.0,112570.0,0.0004]
[1758568137860,1.91880127,112580.0,112570.0,0.0034]
[1758568139064,1.10284127,112580.0,112570.0,0.0034]
[1758568139269,1.91852127,112580.0,112570.0,0.0034]
[1758568140059,1.91852127,112580.0,112570.0,0.02304]
[1758568140367,1.91840127,112580.0,112570.0,0.0034]
[1758568141764,1.10284127,112580.0,112570.0,0.0034]
[1758568142165,1.91816127,112580.0,112570.0,0.02304]
[1758568142763,1.10284127,112580.0,112570.0,0.02304]
[1758568143067,1.91808127,112580.0,112570.0,0.02304]
[1758568143664,1.10284127,112580.0,112570.0,0.003]
[1758568143862,1.10284127,112580.0,112570.0,0.0034]
[1758568144064,1.91796127,112580.0,112570.0,0.0034]
[1758568145368,2.27876127,112580.0,112570.0,0.0034]
[1758568146164,2.27876127,112580.0,112570.0,0.1634]
[1758568147472,2.02876127,112580.0,112570.0,0.1634]
[1758568147671,2.02876127,112580.0,112570.0,0.0034]
[1758568147969,1.46364127,112580.0,112570.0,0.0034]
[1758568148263,1.46364127,112580.0,112570.0,0.003]
[1758568148468,1.46364127,112580.0,112570.0,0.0034]
[1758568148670,1.7563955,112580.0,112570.0,0.003]
[1758568148867,1.7563955,112580.0,112570.0,0.0034]
[1758568148868,2.27908127,112580.0,112570.0,0.0034]
[1758568149272,2.27900127,112580.0,112570.0,0.0034]
[1758568149465,1.46364127,112580.0,112570.0,0.0034]
[1758568149666,2.27940127,112580.0,112570.0,0.0034]
[1758568150572,1.46364127,112580.0,112570.0,0.0034]
[1758568150772,2.27940127,112580.0,112570.0,0.0034]
[1758568151074,2.27928127,112580.0,112570.0,0.0034]
[1758568154174,1.46364127,112580.0,112570.0,0.0034]
[1758568154375,2.27908127,112580.0,112570.0,0.0034]
[1758568156365,1.46364127,112580.0,112570.0,0.0034]
[1758568156571,2.02964127,112580.0,112570.0,0.02304]
[1758568157070,2.02964127,112580.0,112570.0,0.0034]
[1758568157568,1.21364127,112580.0,112570.0,0.0034]
[1758568158071,2.02952127,112580.0,112570.0,0.02304]
[1758568158476,1.21364127,112580.0,112570.0,0.02304]
[1758568158778,1.01872093,112580.0,112570.0,0.02304]
[1758568158972,1.83456093,112580.0,112570.0,0.02304]
[1758568159175,1.83456093,112580.0,112570.0,0.0034]
[1758568159877,1.83456093,112580.0,112570.0,0.02304]
[1758568160373,1.01872093,112580.0,112570.0,0.02304]
[1758568160580,1.08305281,112580.0,112570.0,0.3618089]
[1758568160776,0.26733281,112580.0,112570.0,0.3618089]
[1758568160977,1.0512158,112580.0,112570.0,1.0526089]
[1758568161181,0.26693281,112580.0,112570.0,1.44319702]
[1758568161479,0.1467347,112580.0,112570.0,1.45319702]
[1758568161678,0.1463347,112580.0,112570.0,1.45319702]
[1758568162180,0.1467347,112580.0,112570.0,1.45319702]
[1758568162678,0.1467347,112580.0,112570.0,1.0626089]
[1758568162979,0.2354958,112580.0,112570.0,1.45319702]
[1758568163482,0.2354958,112580.0,112570.0,1.0626089]
[1758568164187,0.62608392,112580.0,112570.0,0.7018089]
[1758568164682,0.2354958,112580.0,112570.0,0.7018089]
[1758568166883,1.0520158,112580.0,112570.0,0.7018089]
[1758568167085,1.0520158,112580.0,112570.0,1.0626089]
[1758568167583,0.1467347,112580.0,112570.0,1.0626089]
[1758568167778,0.9630947,112580.0,112570.0,1.0626089]
[1758568167983,0.9630947,112580.0,112570.0,1.45319702]
[1758568168177,0.99493171,112580.0,112570.0,1.45319702]
[1758568168681,0.26733281,112580.0,112570.0,1.45319702]
[1758568172083,0.26733281,112580.0,112570.0,1.0626089]
[1758568174287,0.26733281,112580.0,112570.0,1.45319702]
[1758568175184,0.26733281,112580.0,112570.0,1.0626089]
[1758568177082,0.2354958,112580.0,112570.0,1.0626089]
[1758568177486,0.4854958,112580.0,112570.0,0.3434]
[1758568177783,1.26872093,112580.0,112570.0,0.343]
[1758568177987,1.26872093,112580.0,112570.0,0.3434]
[1758568178179,1.23688392,112580.0,112570.0,0.3434]
[1758568178379,0.8462958,112580.0,112570.0,0.36304]
[1758568178582,2.05379391,112580.0,112570.0,0.36304]
[1758568178877,1.66316579,112580.0,112570.0,0.4518089]
[1758568179085,1.66312579,112580.0,112570.0,0.4518089]
[1758568179284,1.41112579,112580.0,112570.0,0.4518089]
[1758568179486,1.41312579,112580.0,112570.0,0.4528089]
[1758568179984,1.41112579,112580.0,112570.0,0.4518089]
[1758568180184,1.41312579,112580.0,112570.0,0.4528089]
[1758568180891,1.41612579,112580.0,112570.0,0.4528089]
[1758568181883,1.05532579,112580.0,112570.0,0.4528089]
[1758568182087,1.80671391,112580.0,112570.0,0.4528089]
[1758568185381,0.99063391,112580.0,112570.0,0.4528089]
[1758568185586,1.44607391,112580.0,112570.0,0.4528089]
[1758568187390,1.05548579,112580.0,112570.0,0.4528089]
[1758568187690,0.96604469,112580.0,112570.0,1.45419702]
[1758568187890,0.96644469,112580.0,112570.0,1.45419702]
[1758568188582,0.96604469,112580.0,112570.0,1.0636089]
[1758568188893,0.15048469,112580.0,112570.0,1.45419702]
[1758568189380,0.23924579,112580.0,112570.0,1.45419702]
[1758568193391,0.15048469,112580.0,112570.0,1.45419702]
[1758568194691,0.15008469,112580.0,112570.0,1.45419702]
[1758568195396,0.15048469,112580.0,112570.0,1.45419702]
[1758568196489,0.15048469,112580.0,112570.0,2.27015702]
[1758568197596,0.15048469,112580.0,112570.0,2.02015702]
[1758568198093,0.15008469,112580.0,112570.0,2.01995702]
[1758568198293,0.15008469,112580.0,112570.0,1.20419702]
[1758568198594,0.15048469,112580.0,112570.0,2.01983702]
[1758568199500,0.15048469,112580.0,112570.0,1.20419702]
[1758568199695,0.15048469,112580.0,112570.0,2.01983702]
[1758568201297,0.03329091,112580.0,112570.0,2.28211702]
[1758568201492,0.0104,112580.0,112570.0,2.28211702]
[1758568201692,0.23499499,112610.0,112600.0,0.1083853]
[1758568201887,0.25790477,112610.0,112600.0,0.8191853]
[1758568202195,0.34664217,112610.0,112600.0,1.20977342]
[1758568202694,0.32874051,112610.0,112600.0,1.20977342]
[1758568203097,0.34274051,112610.0,112600.0,1.21277342]
[1758568203290,0.16406051,112610.0,112600.0,1.21277342]
[1758568203488,0.15720152,112610.0,112600.0,1.21377342]
[1758568203692,0.14405152,112610.0,112600.0,1.60436154]
[1758568203894,0.12407653,112610.0,112600.0,1.60436154]
[1758568204196,0.08876675,112610.0,112600.0,1.62207779]
[1758568204397,0.0094,112610.0,112600.0,1.87207779]
[1758568204602,0.01,112610.0,112600.0,1.87907779]
[1758568204898,0.03555,112640.0,112630.0,0.1083617]
[1758568205098,0.13033651,112640.0,112630.0,1.19974982]
[1758568205299,0.14714046,112640.0,112630.0,1.19974982]
[1758568205501,0.14754046,112640.0,112630.0,1.19974982]
[1758568205897,0.05882666,112640.0,112630.0,1.19974982]
[1758568206397,0.15824864,112640.0,112630.0,1.20374982]
[1758568206698,0.15824864,112640.0,112630.0,1.15374982]
[1758568207604,0.06953484,112640.0,112630.0,1.15374982]
[1758568207806,0.15984864,112640.0,112630.0,1.15374982]
[1758568208105,0.16024864,112640.0,112630.0,1.15374982]
[1758568208594,0.15984864,112640.0,112630.0,1.15374982]
[1758568208895,0.16384864,112640.0,112630.0,1.15374982]
[1758568209503,0.2357229,112640.0,112630.0,1.15374982]
[1758568209702,0.1470091,112640.0,112630.0,1.15374982]
[1758568210795,0.2357229,112640.0,112630.0,1.15374982]
[1758568213512,0.1470091,112640.0,112630.0,1.15374982]
[1758568213695,0.1474091,112640.0,112630.0,1.15374982]
[1758568214101,0.1470091,112640.0,112630.0,1.15374982]
[1758568214314,0.1470091,112640.0,112630.0,1.97222982]
[1758568214606,0.2361229,112640.0,112630.0,1.15374982]
[1758568214805,0.2361229,112640.0,112630.0,1.97222982]
[1758568215001,0.2361229,112640.0,112630.0,1.15374982]
[1758568219010,0.1118591,112640.0,112630.0,1.15374982]
[1758568219607,0.1253491,112640.0,112630.0,1.15374982]
[1758568219808,0.2140629,112640.0,112630.0,1.15374982]
[1758568220715,0.2140629,112640.0,112630.0,1.05569428]
[1758568220916,0.1253491,112640.0,112630.0,1.05569428]
[1758568221111,0.10315092,112640.0,112630.0,1.34822686]
[1758568221314,0.03127666,112640.0,112630.0,1.61625876]
[1758568221715,0.03087666,112640.0,112630.0,1.61625876]
[1758568221922,0.03127666,112640.0,112630.0,1.61625876]
[1758568222320,0.03123045,112640.0,112630.0,1.90879134]
[1758568222520,0.0084,112640.0,112630.0,1.90879134]
[1758568222716,0.008,112640.0,112630.0,1.90879134]
[1758568222922,0.0084,112640.0,112630.0,2.73147134]
[1758568223128,0.0084,112640.0,112630.0,2.43893876]
[1758568223727,0.0064,112640.0,112630.0,2.72747134]
[1758568223927,0.0094,112640.0,112630.0,2.74347134]
[1758568224526,0.0084,112640.0,112630.0,1.63325876]
[1758568224726,0.0084,112640.0,112630.0,2.45577876]
[1758568225922,0.0084,112640.0,112630.0,1.0481936]
[1758568226223,0.0084,112640.0,112630.0,2.45565876]
[1758568232932,0.0084,112640.0,112630.0,1.63325876]
[1758568233231,0.0084,112640.0,112630.0,2.45585876]
[1758568234330,0.0313284,112640.0,112630.0,2.45585876]
[1758568234534,0.0313284,112640.0,112630.0,1.63325876]
[1758568234724,0.0313284,112640.0,112630.0,2.45573876]
[1758568236425,0.0313284,112640.0,112630.0,0.7981936]
[1758568236632,0.2813284,112640.0,112630.0,1.91272618]
[1758568236833,0.2813284,112640.0,112630.0,2.20525876]
[1758568237230,0.29502453,112640.0,112630.0,2.20525876]
[1758568238430,0.29502453,112640.0,112630.0,1.09072618]
[1758568238638,0.69902091,112640.0,112630.0,1.09072618]
[1758568238833,0.73085792,112640.0,112630.0,1.91348618]
[1758568239234,0.73085792,112640.0,112630.0,1.91360618]
[1758568239434,0.18832534,112640.0,112630.0,1.91360618]
[1758568239632,0.34961154,112640.0,112630.0,1.91360618]
[1758568240433,0.34861154,112640.0,112630.0,1.90460618]
[1758568240632,0.43732534,112640.0,112630.0,1.90460618]
[1758568242141,0.34861154,112640.0,112630.0,1.90460618]
[1758568242835,0.43732534,112640.0,112630.0,1.90460618]
[1758568244830,0.34861154,112640.0,112630.0,1.90460618]
[1758568246136,0.43732534,112640.0,112630.0,0.7891936]
[1758568246338,0.72985792,112640.0,112630.0,0.7891936]
[1758568246542,0.47985792,112640.0,112630.0,1.90392618]
[1758568248042,0.18732534,112640.0,112630.0,1.90392618]
[1758568248242,0.47985792,112640.0,112630.0,1.90392618]
[1758568248537,0.47985792,112640.0,112630.0,1.08172618]
[1758568248737,0.47985792,112640.0,112630.0,1.90400618]
[1758568249943,0.44802091,112640.0,112630.0,1.88597428]
[1758568250145,0.15548833,112640.0,112630.0,1.88597428]
[1758568251941,0.44802091,112640.0,112630.0,1.88593428]
[1758568254232,0.44802091,112640.0,112630.0,1.88529428]
[1758568254436,0.44802091,112640.0,112630.0,1.88521428]
[1758568254639,0.44802091,112640.0,112630.0,1.88533428]
[1758568255238,0.15548833,112640.0,112630.0,1.88533428]
[1758568257347,0.44802091,112640.0,112630.0,1.88533428]
[1758568257941,0.44803892,112640.0,112630.0,1.88533428]
[1758568258136,0.15550634,112640.0,112630.0,1.88533428]
[1758568258343,0.44803892,112640.0,112630.0,1.88533428]
[1758568259450,0.44803892,112640.0,112630.0,1.06369428]
[1758568259649,0.44803892,112640.0,112630.0,1.88465428]
[1758568263444,0.44803892,112640.0,112630.0,1.06369428]
[1758568263652,0.47987593,112640.0,112630.0,1.06369428]
[1758568265553,0.06679254,112640.0,112630.0,1.06369428]
[1758568266253,0.09862955,112640.0,112630.0,1.06369428]
[1758568266654,0.18734335,112640.0,112630.0,1.06369428]
[1758568266954,0.47987593,112640.0,112630.0,0.7711617]
[1758568267155,0.47987593,112640.0,112630.0,1.88357428]
[1758568267956,0.47987593,112640.0,112630.0,1.06369428]
[1758568268146,0.44403892,112640.0,112630.0,1.06369428]
[1758568268343,0.44403892,112640.0,112630.0,0.7711617]
[1758568268542,0.44403892,112640.0,112630.0,1.06369428]
[1758568269351,0.44403892,112640.0,112630.0,1.88377428]
[1758568269655,0.7365715,112640.0,112630.0,0.7711617]
[1758568270055,0.76840851,112640.0,112630.0,0.7711617]
[1758568270254,0.47587593,112640.0,112630.0,0.7711617]
[1758568270854,0.18334335,112640.0,112630.0,1.06369428]
[1758568271056,0.47587593,112640.0,112630.0,1.06369428]
[1758568271954,0.76840851,112640.0,112630.0,0.32164]
[1758568272155,0.76840851,112640.0,112630.0,0.4103617]
[1758568273462,0.76840851,112640.0,112630.0,0.32164]
[1758568274362,1.00374335,112640.0,112630.0,0.4103617]
[1758568274561,1.29627593,112640.0,112630.0,0.4103617]
[1758568274754,1.29627593,112640.0,112630.0,0.32164]
[1758568275454,1.58880851,112640.0,112630.0,0.32164]
[1758568276365,0.47587593,112640.0,112630.0,0.32164]
[1758568276559,1.29643593,112640.0,112630.0,0.32164]
[1758568276760,0.47587593,112640.0,112630.0,0.61417258]
[1758568276960,1.29615593,112640.0,112630.0,0.70289418]
[1758568279768,0.47587593,112640.0,112630.0,0.70289418]
[1758568279966,1.29615593,112640.0,112630.0,0.70289418]
[1758568280365,1.29615593,112640.0,112630.0,0.4103616]
[1758568280568,0.5734754,112640.0,112630.0,0.4103616]
[1758568280768,1.3932754,112640.0,112630.0,0.4103616]
[1758568281765,1.00314335,112640.0,112630.0,0.4103616]
[1758568283871,0.18334335,112640.0,112630.0,0.4103616]
[1758568284275,1.00262335,112640.0,112630.0,0.80049365]
[1758568284661,1.00262335,112640.0,112630.0,0.4103617]
[1758568284866,0.97078634,112640.0,112630.0,0.4103617]
[1758568286172,0.15150634,112640.0,112630.0,0.4103617]
[1758568286368,0.97110634,112640.0,112630.0,0.4103617]
[1758568289075,1.00294335,112640.0,112630.0,0.4103617]
[1758568290164,1.00262335,112640.0,112630.0,1.16129375]
[1758568290572,0.15150634,112640.0,112630.0,1.16129375]
[1758568290769,0.15110634,112640.0,112630.0,1.16129375]
[1758568291073,0.15150634,112640.0,112630.0,1.16129375]
[1758568291571,0.15110634,112640.0,112630.0,1.16129375]
[1758568291974,0.15150634,112640.0,112630.0,1.16129375]
[1758568298182,0.18334335,112640.0,112630.0,1.16129375]
[1758568298881,0.18334335,112640.0,112630.0,0.7711617]
[1758568299083,0.18334335,112640.0,112630.0,0.7711616]
[1758568299580,0.5734754,112640.0,112630.0,0.32164]
[1758568300692,0.58939391,112640.0,112630.0,0.302]
[1758568300893,1.40763391,112640.0,112630.0,0.32164]
[1758568302191,0.58939391,112640.0,112630.0,0.32164]
[1758568302403,1.40771391,112640.0,112630.0,0.32164]
[1758568302696,1.39182334,112640.0,112630.0,0.32164]
[1758568303387,0.57350334,112640.0,112630.0,0.32164]
[1758568303599,1.39166334,112640.0,112630.0,0.32164]
[1758568304997,1.39146334,112640.0,112630.0,0.4103616]
[1758568305895,1.39146334,112640.0,112630.0,0.32164]
[1758568308196,1.35959839,112640.0,112630.0,0.32164]
[1758568308600,1.39146334,112640.0,112630.0,0.32164]
[1758568309399,0.57350334,112640.0,112630.0,0.32164]
[1758568309597,1.39078334,112640.0,112630.0,0.32164]
[1758568310200,0.57350334,112640.0,112630.0,0.4103616]
[1758568310399,0.18337129,112640.0,112630.0,0.4103616]
[1758568310601,0.06279254,112640.0,112630.0,1.16129365]
[1758568310800,0.02635254,112640.0,112630.0,1.22129365]
[1758568311094,0.11506634,112640.0,112630.0,2.03845365]
[1758568311299,0.02595254,112640.0,112630.0,2.03845365]
[1758568311497,0.02635254,112640.0,112630.0,2.03845365]
[1758568312298,0.02635254,112640.0,112630.0,2.28845365]
[1758568312603,0.02595254,112640.0,112630.0,2.28845365]
[1758568312902,0.02635254,112640.0,112630.0,2.28845365]
[1758568313401,0.02635254,112640.0,112630.0,1.47129365]
[1758568313601,0.02635254,112640.0,112630.0,2.28857365]
[1758568315503,0.02635254,112640.0,112630.0,2.28845365]
[1758568315892,0.02635254,112640.0,112630.0,1.47129365]
[1758568316195,0.02635254,112640.0,112630.0,2.28841365]
[1758568318004,0.02635254,112640.0,112630.0,1.47129365]
[1758568318196,0.02635254,112640.0,112630.0,2.28837365]
[1758568320301,0.02635254,112640.0,112630.0,1.0811616]
[1758568320498,0.03945254,112640.0,112630.0,2.03773365]
[1758568321904,0.02635254,112640.0,112630.0,2.03773365]
[1758568327013,0.02635254,112640.0,112630.0,1.22129365]
[1758568327213,0.02635254,112640.0,112630.0,2.03729365]
[1758568327604,0.02635254,112640.0,112630.0,1.22129365]
[1758568328010,0.02635254,112640.0,112630.0,2.03729365]
[1758568328217,0.0034,112640.0,112630.0,2.03729365]
[1758568328915,0.1052138,112640.0,112630.0,2.03729365]
[1758568330112,0.1052138,112640.0,112630.0,1.22129365]
[1758568330412,0.1052138,112640.0,112630.0,2.03729365]
[1758568331608,0.1052138,112640.0,112630.0,1.22129365]
[1758568331808,0.1052138,112640.0,112630.0,2.03725365]
[1758568332214,0.1052138,112640.0,112630.0,1.22129365]
[1758568332412,0.14948488,112640.0,112630.0,1.6471216]
[1758568332709,0.14948488,112640.0,112630.0,2.03725365]
[1758568332914,0.39948488,112640.0,112630.0,0.8311616]
[1758568333108,0.78961693,112640.0,112630.0,0.8311616]
[1758568333310,0.78961693,112640.0,112630.0,0.74244]
[1758568333511,0.78961693,112640.0,112630.0,0.7228]
[1758568333710,0.78961693,112640.0,112630.0,0.362]
[1758568334111,0.78961693,112640.0,112630.0,0.38164]
[1758568336421,0.78961693,112640.0,112630.0,0.4703616]
[1758568337314,0.39948488,112640.0,112630.0,0.4703616]
[1758568339418,0.78961693,112640.0,112630.0,0.4703616]
[1758568340515,0.69208138,112640.0,112630.0,0.7629581]
[1758568341715,0.39948488,112640.0,112630.0,0.7629581]
[1758568341914,0.69208138,112640.0,112630.0,0.7629581]
[1758568342820,0.69208138,112640.0,112630.0,0.8311616]
[1758568343523,0.98467788,112640.0,112630.0,0.8311616]
[1758568346328,1.21548488,112640.0,112630.0,0.8311616]
[1758568346518,0.69208138,112640.0,112630.0,0.8311616]
[1758568346719,0.69208138,112640.0,112630.0,1.1237581]
[1758568348219,0.72394633,112640.0,112630.0,1.1237581]
[1758568348415,0.72394633,112640.0,112630.0,0.8311616]
[1758568348616,0.72394633,112640.0,112630.0,1.1237581]
[1758568349523,1.53994633,112640.0,112630.0,1.1237581]
[1758568351328,1.24734983,112640.0,112630.0,1.1237581]
[1758568351524,1.53994633,112640.0,112630.0,1.1237581]
[1758568352929,1.53994633,112640.0,112630.0,0.8311616]
[1758568353117,1.53994633,112640.0,112630.0,1.1237581]
[1758568353317,1.83254283,112640.0,112630.0,0.8311616]
[1758568354024,1.83254283,112640.0,112630.0,0.4703616]
[1758568354328,1.83254283,112640.0,112630.0,0.7629581]
[1758568356129,1.83254283,112640.0,112630.0,0.362]
[1758568358133,1.83246283,112640.0,112630.0,0.362]
[1758568358328,1.80059788,112640.0,112630.0,0.38164]
[1758568358731,0.98467788,112640.0,112630.0,0.4703616]
[1758568358926,1.80059788,112640.0,112630.0,0.4703616]
[1758568359131,0.98467788,112640.0,112630.0,0.4703616]
[1758568359430,0.73467788,112640.0,112630.0,0.4703616]
[1758568359631,1.55055788,112640.0,112630.0,0.4703616]
[1758568360224,1.58242283,112640.0,112630.0,0.4703616]
[1758568363338,1.582561,112640.0,112630.0,0.4703616]
[1758568364837,0.997368,112640.0,112630.0,0.4703616]
[1758568365030,1.582561,112640.0,112630.0,0.4703616]
[1758568365636,0.766681,112640.0,112630.0,0.4703616]
[1758568365933,1.582561,112640.0,112630.0,0.4703616]
[1758568370233,1.582561,112640.0,112630.0,0.38164]
[1758568370532,1.582561,112640.0,112630.0,0.362]
[1758568371039,1.55945175,112640.0,112630.0,0.4703618]
[1758568371336,1.58256262,112640.0,112630.0,0.4703618]
[1758568373340,0.99736962,112640.0,112630.0,0.4703618]
[1758568373640,1.58256262,112640.0,112630.0,0.4703618]
[1758568375843,1.58256262,112640.0,112630.0,0.362]
[1758568379247,1.58256262,112640.0,112630.0,0.38164]
[1758568379542,1.58256262,112640.0,112630.0,0.362]
[1758568380549,0.1242418,112630.0,112620.0,0.3608]
[1758568380747,0.47181601,112630.0,112620.0,0.6808]
[1758568381152,0.47181601,112630.0,112620.0,0.70044]
[1758568382151,1.12521251,112630.0,112620.0,0.32]
[1758568382336,1.12521251,112630.0,112620.0,0.324]
[1758568382337,1.37621251,112630.0,112620.0,0.324]
[1758568382538,1.42396803,112630.0,112620.0,0.004]
[1758568382741,1.39210119,112630.0,112620.0,0.004]
[1758568383053,2.20974119,112630.0,112620.0,0.01]
[1758568384950,1.39410119,112630.0,112620.0,0.01]
[1758568385149,2.20974119,112630.0,112620.0,0.01]
[1758568385350,1.91714469,112630.0,112620.0,0.01]
[1758568385951,1.91714469,112630.0,112620.0,0.31]
[1758568386154,1.90121703,112630.0,112620.0,0.31]
[1758568386452,2.19381353,112630.0,112620.0,0.31]
[1758568387150,1.37817353,112630.0,112620.0,0.31]
[1758568387547,1.35858053,112630.0,112620.0,0.7109662]
[1758568387750,1.65117703,112630.0,112620.0,0.7209662]
[1758568388150,1.65117703,112630.0,112620.0,0.4283697]
[1758568388651,0.83557703,112630.0,112620.0,0.4283697]
[1758568389050,1.65117703,112630.0,112620.0,0.4283697]
[1758568390052,0.83557703,112630.0,112620.0,0.4283697]
[1758568390252,1.65117703,112630.0,112620.0,0.4283697]
[1758568391757,0.83557703,112630.0,112620.0,0.4283697]
[1758568391957,1.65117703,112630.0,112620.0,0.4283697]
[1758568392156,1.65117703,112630.0,112620.0,0.7209662]
[1758568392757,1.65117703,112630.0,112620.0,0.4283697]
[1758568393158,0.83557703,112630.0,112620.0,0.4283697]
[1758568393356,1.65113703,112630.0,112620.0,0.4283697]
[1758568393651,1.29033703,112630.0,112620.0,0.4283697]
[1758568393860,1.25850917,112630.0,112620.0,0.7891697]
[1758568394763,0.44294917,112630.0,112620.0,0.7891697]